bitfinex-derivatives/quotes_ETHF0:USTF0_20210111
["timestamp","ask_amount","ask_price","bid_price","bid_amount"]
[1610389917778,2.41848864,1008.6,1006.7,70.8713]
[1610389917980,2.2789,1008.6,1006.7,70.8713]
[1610389919780,2.2789,1008.6,1008.5,4.00959]
[1610389920381,2.101,1008.9,1008.5,4.00959]
[1610389921382,18.1308773,1009.6,1008.5,5.85509]
[1610389921586,18.12926597,1009.7,1008.5,5.85509]
[1610389921785,18.12926597,1009.7,1009.5,4.00959]
[1610389922482,18.12926597,1009.7,1008.5,1.8455]
[1610389922782,2.4165686,1009.5,1008.1,84.9338]
[1610389922984,4.0886686,1009.5,1008.1,84.9338]
[1610389923186,19.80274139,1009.5,1008.1,84.9338]
[1610389923684,19.80274139,1009.5,1009.4,4.00959]
[1610389923886,1.6721,1009.5,1009.4,4.00959]
[1610389924688,1.6721,1009.5,1008.1,84.9338]
[1610389925488,1.6721,1009.5,1007.8,2.4306]
[1610389925791,4.00959,1008.6,1008.5,4.00959]
[1610389925990,5.68929,1008.6,1007.4,1.7358]
[1610389926189,5.68929,1008.6,1006.8,72.2708]
[1610389926389,1.6797,1008.6,1006.8,72.2708]
[1610389926993,1.6797,1008.6,1007.0,0.28073723]
[1610389927195,1.6797,1008.6,1007.0,2.04373723]
[1610389927790,1.6797,1008.6,1008.5,4.00959]
[1610389929394,61.08141228,1009.3,1008.5,4.00959]
[1610389929795,61.07724575,1009.4,1009.2,4.00959]
[1610389929994,61.07724575,1009.4,1007.9,1.5976]
[1610389930594,62.74526944,1009.5,1007.9,1.5976]
[1610389931397,45.3548668,1009.4,1007.9,1.5976]
[1610389931597,61.08679401,1009.3,1007.9,1.5976]
[1610389931800,61.08679401,1009.3,1008.3,4.00959]
[1610389932000,61.08849264,1009.2,1008.3,4.00959]
[1610389932199,62.60459264,1009.2,1008.3,4.00959]
[1610389933698,61.09801912,1009.1,1008.3,4.00959]
[1610389933897,4.00959,1008.4,1008.3,4.00959]
[1610389934099,6.12329,1008.4,1008.3,4.00959]
[1610389934497,6.12329,1008.4,1007.0,1.763]
[1610389934696,6.12329,1008.4,1006.9,0.28163453]
[1610389934697,6.12329,1008.4,1006.9,64.00383453]
[1610389935100,6.12329,1008.4,1006.9,63.7222]
[1610389935899,4.00959,1007.9,1007.8,4.00959]
[1610389936103,1.9284,1007.9,1007.8,4.00959]
[1610389937904,1.9284,1007.9,1006.9,63.7222]
[1610389938104,1.9284,1007.9,1006.5,0.28310841]
[1610389939005,1.9284,1007.9,1006.7,0.28369192]
[1610389939205,67.6187,1008.2,1006.7,2.12319192]
[1610389939406,2.1137,1008.4,1006.8,0.28344401]
[1610389939605,61.12522719,1008.7,1006.8,0.28344401]
[1610389939807,61.12522719,1008.7,1008.0,4.00959]
[1610389940109,4.00959,1008.8,1008.0,4.00959]
[1610389940110,65.13309931,1008.8,1008.0,4.00959]
[1610389941106,45.39200745,1008.7,1008.0,4.00959]
[1610389941309,46.99570745,1008.7,1008.0,4.00959]
[1610389941510,1.6037,1008.7,1008.0,4.00959]
[1610389941907,1.6037,1008.7,1008.3,4.00959]
[1610389943810,1.6037,1008.7,1008.6,4.00959]
[1610389945010,1.5161,1009.2,1008.6,4.00959]
[1610389945209,1.6721,1009.5,1008.6,4.00959]
[1610389945409,61.04862927,1009.9,1008.6,4.00959]
[1610389945810,61.04862927,1009.9,1009.8,4.00959]
[1610389946011,61.04218,1010.0,1009.8,4.00959]
[1610389946413,61.03839702,1009.9,1009.8,4.00959]
[1610389946812,63.31109702,1009.9,1009.8,4.00959]
[1610389947011,2.2727,1009.9,1009.8,4.00959]
[1610389951711,61.0248725,1010.1,1009.8,4.00959]
[1610389951914,61.0248725,1010.1,1008.8,60.2417]
[1610389952110,62.5679725,1010.1,1008.8,60.2417]
[1610389952512,61.03363878,1010.0,1008.8,60.2417]
[1610389952712,61.03982095,1009.9,1008.8,60.2417]
[1610389953112,45.32940917,1009.8,1008.8,60.2417]
[1610389953312,47.44930917,1009.8,1008.0,2.20815148]
[1610389953512,45.33591045,1009.7,1008.0,1.9209]
[1610389953713,61.0527936,1009.6,1007.8,0.28765223]
[1610389953914,65.0623836,1009.6,1009.4,4.00959]
[1610389954114,61.05698012,1009.5,1009.4,4.00959]
[1610389954313,47.81293168,1009.5,1007.8,0.28808219]
[1610389954713,2.4703,1009.5,1007.8,0.28808219]
[1610389956014,2.4703,1009.5,1009.4,4.00959]
[1610389957016,2.4703,1009.5,1008.5,81.549]
[1610389957915,4.00959,1009.4,1009.1,4.00959]
[1610389958115,4.00959,1009.4,1008.5,81.549]
[1610389958416,65.07560159,1009.4,1007.7,1.6638]
[1610389958815,65.07560159,1009.4,1007.6,0.28540236]
[1610389959518,45.35000689,1009.3,1007.5,0.28638265]
[1610389959916,4.00959,1009.1,1008.5,4.00959]
[1610389960116,6.40669,1009.1,1008.5,4.00959]
[1610389960516,2.3971,1009.1,1008.5,4.00959]
[1610389962021,2.3971,1009.1,1008.8,4.00959]
[1610389964623,2.3971,1009.1,1007.7,83.89929182]
[1610389964822,2.3971,1009.1,1007.7,81.5396]
[1610389965223,2.0667,1009.1,1007.3,0.28666557]
[1610389965627,128.84029202,1008.9,1007.1,0.28717375]
[1610389966026,4.00959,1008.7,1008.5,4.00959]
[1610389966227,6.09689,1008.7,1008.5,4.00959]
[1610389966825,6.09689,1008.7,1007.1,0.28705957]
[1610389967027,68.7602,1008.4,1007.1,0.28705957]
[1610389967227,70.3155,1008.4,1007.1,0.28705957]
[1610389967428,70.3155,1008.4,1006.8,0.28729957]
[1610389967928,70.3155,1008.4,1008.0,4.00959]
[1610389968129,70.3155,1008.4,1006.9,0.28714137]
[1610389969830,70.3155,1008.4,1007.0,0.28633087]
[1610389970035,70.3155,1008.4,1008.3,4.00959]
[1610389970237,1.5553,1008.4,1007.0,0.28633087]
[1610389970636,1.5553,1008.4,1006.9,0.57266175]
[1610389970637,1.5553,1008.4,1006.9,0.28566521]
[1610389971936,4.00959,1008.3,1008.0,4.00959]
[1610389972136,1.5553,1008.4,1008.0,4.00959]
[1610389972539,2.0873,1008.7,1008.0,4.00959]
[1610389972739,125.03792791,1008.8,1008.0,4.00959]
[1610389973145,63.9352,1008.8,1008.0,4.00959]
[1610389973541,61.09981331,1008.9,1008.0,4.00959]
[1610389973941,67.37832137,1009.0,1008.5,4.00959]
[1610389974141,61.09552137,1009.0,1008.5,4.00959]
[1610389974341,2.0667,1009.1,1008.5,4.00959]
[1610389974541,61.07830173,1009.3,1008.5,4.00959]
[1610389974943,61.07480726,1009.4,1008.5,4.00959]
[1610389975241,45.35587062,1009.4,1008.5,4.00959]
[1610389975642,63.54232175,1009.5,1008.5,4.00959]
[1610389975843,45.3546687,1009.4,1008.5,4.00959]
[1610389976042,4.00959,1009.3,1008.8,4.00959]
[1610389976242,4.00959,1009.3,1007.7,61.489]
[1610389976842,65.08701856,1009.3,1007.7,61.489]
[1610389977444,4.00959,1009.3,1007.7,61.489]
[1610389978043,4.00959,1009.3,1009.2,4.00959]
[1610389978243,63.54014472,1009.5,1009.2,4.00959]
[1610389979244,63.54014472,1009.5,1008.4,70.7104]
[1610389979845,77.8224853,1009.5,1007.9,2.2527]
[1610389980046,51.8320753,1009.5,1009.2,4.00959]
[1610389980247,59.5998,1009.4,1008.2,68.4637]
[1610389980647,61.06991999,1009.3,1008.2,68.4637]
[1610389980946,120.66916813,1009.4,1008.2,68.4637]
[1610389981445,61.06936813,1009.4,1007.6,2.49477968]
[1610389981645,61.06936813,1009.4,1007.8,76.7882]
[1610389981845,61.06936813,1009.4,1007.6,2.49477968]
[1610389982047,2.4703,1009.5,1009.3,4.00959]
[1610389982247,61.05489612,1009.6,1009.3,4.00959]
[1610389982448,61.04569615,1009.7,1009.3,4.00959]
[1610389982649,61.04215139,1009.9,1009.3,4.00959]
[1610389983048,61.0336084,1010.0,1009.3,4.00959]
[1610389983249,29.0009289,1010.0,1009.3,4.00959]
[1610389983449,61.03265679,1010.1,1009.3,4.00959]
[1610389984048,61.03265679,1010.1,1009.7,4.00959]
[1610389985952,61.03265679,1010.1,1009.9,4.00959]
[1610389986150,45.32456849,1010.1,1009.9,4.00959]
[1610389986551,4.00959,1010.2,1008.6,1.538]
[1610389986751,4.00959,1010.2,1008.9,79.1292]
[1610389986952,65.03044773,1010.2,1008.6,1.538]
[1610389987152,67.14624773,1010.2,1008.9,59.7068]
[1610389987555,6.12539,1010.2,1008.9,59.7068]
[1610389987953,6.12539,1010.2,1009.9,4.00959]
[1610389988153,2.1158,1010.2,1009.9,4.00959]
[1610389988353,2.1158,1010.2,1009.9,75.88979]
[1610389988955,60.98653289,1010.8,1009.9,75.88979]
[1610389989154,13.28234305,1010.8,1009.9,75.88979]
[1610389989354,60.98243856,1010.9,1009.9,75.88979]
[1610389989853,57.70143856,1010.9,1009.9,75.88979]
[1610389990062,56.74494896,1011.0,1010.8,4.00959]
[1610389990457,56.74494896,1011.0,1009.9,73.3876]
[1610389990660,56.74740666,1010.9,1009.9,73.3876]
[1610389991460,58.88488515,1011.0,1009.9,73.3876]
[1610389991668,8.17969281,1011.0,1009.9,73.3876]
[1610389991860,2.1402,1011.0,1009.9,73.3876]
[1610389992062,2.1402,1011.0,1010.7,4.00959]
[1610389992664,56.74174092,1011.1,1010.7,4.00959]
[1610389992865,56.73375377,1011.2,1010.7,4.00959]
[1610389993066,56.72638264,1011.4,1010.7,4.00959]
[1610389993564,56.71464744,1011.6,1010.7,5.57829]
[1610389993766,56.70490819,1011.8,1010.7,5.57829]
[1610389993963,56.70490819,1011.8,1010.7,86.02469]
[1610389994268,56.69853025,1011.9,1011.4,4.00959]
[1610389994866,52.30928607,1012.0,1011.4,4.00959]
[1610389995066,49.64628607,1012.0,1011.4,4.00959]
[1610389995267,34.9769091,1012.1,1011.4,4.00959]
[1610389996166,34.9769091,1012.1,1011.9,4.00959]
[1610389997267,34.97356311,1012.2,1011.9,4.00959]
[1610389997567,19.2976102,1012.1,1011.9,4.00959]
[1610389997966,36.70459622,1012.1,1011.9,4.00959]
[1610389998168,1.7306,1012.1,1011.9,4.00959]
[1610389999166,37.20340109,1012.4,1011.9,4.00959]
[1610389999368,2.2383,1012.4,1011.9,4.00959]
[1610389999567,37.19897135,1012.4,1011.9,4.00959]
[1610389999970,41.42245062,1012.4,1011.9,4.00959]
[1610390000170,41.42245062,1012.4,1012.2,4.00959]
[1610390000369,39.1880032,1012.3,1012.2,4.00959]
[1610390000569,23.51641705,1012.3,1012.2,4.00959]
[1610390000873,17.90981922,1012.4,1012.2,4.00959]
[1610390000874,41.42244393,1012.4,1012.2,4.00959]
[1610390001169,2.2383,1012.4,1012.2,4.00959]
[1610390003673,39.17155424,1012.8,1012.2,4.00959]
[1610390004073,39.17155424,1012.8,1012.7,4.00959]
[1610390004274,38.20151629,1012.9,1012.7,4.00959]
[1610390004474,19.96852292,1012.9,1012.7,4.00959]
[1610390004674,18.37752292,1012.9,1012.7,4.00959]
[1610390004874,13.25172662,1013.0,1012.7,4.00959]
[1610390005073,12.46072662,1013.0,1012.7,4.00959]
[1610390005274,34.93832633,1013.1,1012.7,4.00959]
[1610390005473,34.93440564,1013.2,1012.7,4.00959]
[1610390006076,34.93440564,1013.2,1013.1,4.00959]
[1610390007275,34.92859545,1013.4,1013.1,4.00959]
[1610390007875,34.92473677,1013.5,1013.1,4.00959]
[1610390008075,34.92473677,1013.5,1013.4,4.00959]
[1610390008679,34.91870228,1013.7,1013.4,4.00959]
[1610390008877,57.8899,1013.6,1013.4,4.00959]
[1610390009878,34.91693764,1013.7,1013.4,4.00959]
[1610390010078,34.91693764,1013.7,1013.6,4.00959]
[1610390011078,34.91465127,1013.8,1013.6,4.00959]
[1610390011577,34.91465127,1013.8,1012.7,1.9674]
[1610390011778,70.0053,1013.6,1012.7,1.9674]
[1610390011977,71.9318,1013.6,1012.7,1.9674]
[1610390012179,4.00959,1013.4,1013.2,4.00959]
[1610390012378,4.00959,1013.4,1012.7,1.9674]
[1610390012778,71.6814,1013.2,1012.0,1.839]
[1610390012979,71.6814,1013.2,1011.8,55.8871]
[1610390013379,19.27697683,1013.1,1011.8,55.8871]
[1610390013580,19.27697683,1013.1,1011.7,2.0463]
[1610390013780,60.0458,1012.6,1011.0,58.5098]
[1610390013981,2.3407,1012.6,1010.9,6.90846815]
[1610390014180,4.00959,1012.1,1011.9,4.00959]
[1610390014486,5.59599,1012.1,1010.6,0.84725079]
[1610390014681,5.59599,1012.1,1010.4,0.8471892]
[1610390015089,5.59599,1012.1,1010.6,0.28207942]
[1610390015290,5.59599,1012.1,1010.6,1.6252]
[1610390015496,1.5864,1012.1,1010.6,1.6252]
[1610390015693,1.5864,1012.1,1010.6,13.02303088]
[1610390015902,1.5864,1012.1,1010.7,0.2811507]
[1610390016092,1.5864,1012.1,1012.0,4.00959]
[1610390016687,2.3407,1012.6,1012.0,4.00959]
[1610390017987,140.60394116,1013.1,1012.0,6.47259]
[1610390018187,140.60394116,1013.1,1013.0,4.00959]
[1610390018386,60.84108246,1013.2,1013.0,4.00959]
[1610390018586,54.23808246,1013.2,1013.0,4.00959]
[1610390018791,63.16517199,1013.3,1013.0,4.00959]
[1610390018988,2.3214,1013.3,1013.0,4.00959]
[1610390019388,60.3458548,1013.6,1013.0,4.00959]
[1610390019589,44.69071964,1013.6,1013.0,4.00959]
[1610390019991,60.34500062,1013.6,1013.0,4.00959]
[1610390020190,60.34500062,1013.6,1013.3,4.00959]
[1610390020591,1.9265,1013.6,1013.3,4.00959]
[1610390020792,58.40691442,1013.7,1013.3,4.00959]
[1610390020993,42.75511302,1013.7,1013.3,4.00959]
[1610390021292,58.40505711,1013.8,1013.3,4.00959]
[1610390021692,44.77705711,1013.8,1013.3,4.00959]
[1610390022092,44.77705711,1013.8,1013.7,4.00959]
[1610390022291,18.05815842,1014.0,1013.7,4.00959]
[1610390022292,42.74769257,1014.0,1013.7,4.00959]
[1610390022592,42.74734079,1013.9,1013.7,4.00959]
[1610390022993,45.04754079,1013.9,1013.7,4.00959]
[1610390023596,42.74721255,1013.8,1013.7,4.00959]
[1610390023793,42.74721255,1013.8,1012.6,2.2824]
[1610390023994,103.75581255,1013.8,1012.3,1.7512]
[1610390024195,103.75581255,1013.8,1013.5,4.00959]
[1610390024595,27.69214995,1013.7,1012.0,68.3294]
[1610390024795,30.10078064,1013.7,1012.0,68.3294]
[1610390025196,42.77119957,1013.2,1012.0,68.3294]
[1610390025396,44.53989957,1013.2,1012.0,68.3294]
[1610390025796,42.77236254,1013.1,1012.0,68.3294]
[1610390025999,1.7687,1013.2,1012.0,68.3294]
[1610390026000,42.77717726,1013.0,1012.0,68.3294]
[1610390026196,4.00959,1012.9,1011.3,6.3339]
[1610390026397,5.80209,1012.9,1011.7,56.1567]
[1610390026799,48.58571679,1012.9,1011.7,56.1567]
[1610390027000,42.78941606,1012.8,1011.0,1.5434]
[1610390027200,79.6928,1012.7,1011.0,1.5434]
[1610390027401,122.48663266,1012.7,1011.0,1.5434]
[1610390028202,122.48663266,1012.7,1012.6,4.00959]
[1610390028402,42.79383266,1012.7,1012.6,4.00959]
[1610390028623,42.78848133,1012.8,1012.6,4.00959]
[1610390028833,44.5775808,1012.9,1012.6,4.00959]
[1610390029207,1.7925,1012.9,1012.6,4.00959]
[1610390030203,1.7925,1012.9,1012.8,4.00959]
[1610390030804,1.7687,1013.2,1012.8,4.00959]
[1610390031001,42.7641023,1013.5,1012.8,4.00959]
[1610390031902,58.41592632,1013.6,1012.8,4.00959]
[1610390032302,42.76170992,1013.6,1013.5,4.00959]
[1610390032703,58.40677813,1013.7,1013.5,4.00959]
[1610390033104,42.7490731,1013.8,1013.5,4.00959]
[1610390034003,60.69311698,1013.9,1013.5,4.00959]
[1610390034204,60.69311698,1013.9,1013.8,4.00959]
[1610390034407,2.3002,1013.9,1013.8,4.00959]
[1610390034806,42.73714166,1014.1,1013.8,4.00959]
[1610390035407,42.73714166,1014.1,1012.9,58.8855]
[1610390035607,44.67954166,1014.1,1012.5,2.4637]
[1610390035807,58.39119962,1014.0,1012.2,2.55218107]
[1610390036106,58.39119962,1014.0,1012.2,0.28338107]
[1610390036309,4.00959,1013.6,1013.5,4.00959]
[1610390036507,5.57489,1013.6,1013.5,4.00959]
[1610390036807,1.5653,1013.6,1013.5,4.00959]
[1610390041415,1.9424,1014.1,1013.5,4.00959]
[1610390041616,60.78694666,1014.3,1013.5,4.00959]
[1610390042315,60.78694666,1014.3,1014.2,4.00959]
[1610390042516,53.62125031,1014.3,1013.0,60.9794]
[1610390042719,10.8215,1014.3,1013.0,60.9794]
[1610390043118,60.79384619,1014.2,1013.0,60.9794]
[1610390043416,60.79516042,1014.1,1013.0,60.9794]
[1610390043915,45.148197,1014.1,1013.0,60.9794]
[1610390044115,60.79480547,1014.1,1013.0,60.9794]
[1610390044315,64.80439547,1014.1,1013.7,4.00959]
[1610390044515,4.00959,1014.1,1013.7,4.00959]
[1610390044916,64.80081031,1014.1,1013.7,4.00959]
[1610390045118,49.15486097,1014.1,1013.0,60.9794]
[1610390045618,64.80104076,1014.1,1012.4,1.4949]
[1610390045818,45.14987066,1013.9,1012.4,1.4949]
[1610390046017,47.12647066,1013.9,1012.4,1.4949]
[1610390046218,47.12647066,1013.9,1012.6,4.00959]
[1610390046219,4.00959,1013.2,1012.6,4.00959]
[1610390046618,2.0565,1013.3,1012.6,4.00959]
[1610390048320,2.0565,1013.3,1013.2,4.00959]
[1610390048921,2.0565,1013.3,1013.2,83.22529]
[1610390049322,1.9766,1013.9,1013.2,83.22529]
[1610390049523,1.9766,1013.9,1013.2,4.00959]
[1610390049726,1.9766,1013.9,1013.4,80.9051]
[1610390050322,1.9766,1013.9,1013.8,4.00959]
[1610390051124,2.3421,1014.3,1013.8,4.00959]
[1610390051525,60.73885236,1014.8,1013.8,4.00959]
[1610390051725,45.10638106,1014.8,1013.8,4.00959]
[1610390052026,60.73451914,1014.9,1013.8,4.00959]
[1610390052229,60.73451914,1014.9,1014.8,4.00959]
[1610390052627,45.10254628,1014.9,1014.8,4.00959]
[1610390053027,60.72959015,1015.1,1014.8,4.00959]
[1610390053728,60.72503824,1015.2,1014.8,4.00959]
[1610390054328,60.72503824,1015.2,1014.3,78.651]
[1610390054529,60.72845525,1015.1,1013.2,0.27857324]
[1610390054730,62.31865525,1015.1,1014.0,63.4703]
[1610390054928,62.31865525,1015.1,1013.2,0.27857324]
[1610390055330,62.31865525,1015.1,1013.6,74.9587]
[1610390055531,1.5902,1015.1,1013.6,74.9587]
[1610390056231,1.5902,1015.1,1015.0,4.00959]
[1610390056633,1.5902,1015.1,1014.5,68.3567]
[1610390058235,1.5902,1015.1,1015.0,4.00959]
[1610390059637,60.71336139,1015.4,1015.0,4.00959]
[1610390059840,45.08746624,1015.4,1015.0,4.00959]
[1610390060038,60.71121333,1015.4,1015.0,4.00959]
[1610390060438,60.71121333,1015.4,1014.0,79.2714]
[1610390060650,60.71121333,1015.4,1013.4,0.27990972]
[1610390060651,45.08619874,1015.3,1013.4,0.27990972]
[1610390060838,64.8243,1014.9,1013.4,0.27990972]
[1610390061039,64.8243,1014.9,1013.2,0.280416]
[1610390061040,66.4596,1014.9,1013.2,0.280416]
[1610390061441,45.11135601,1014.8,1013.0,63.0262]
[1610390061841,60.74605125,1014.8,1013.0,63.0262]
[1610390062044,60.74832238,1014.7,1012.8,0.2809197]
[1610390062243,60.74832238,1014.7,1014.4,4.00959]
[1610390062444,60.74221568,1014.8,1014.4,4.00959]
[1610390063044,1.6353,1014.9,1014.4,4.00959]
[1610390064251,1.6353,1014.9,1014.8,4.00959]
[1610390065050,1.6353,1014.9,1014.2,75.4714]
[1610390066258,64.72746232,1015.2,1014.8,4.00959]
[1610390066446,1.7656,1014.9,1014.8,4.00959]
[1610390068346,1.533,1015.4,1014.8,4.00959]
[1610390068546,60.69306578,1015.7,1014.8,4.00959]
[1610390068747,27.63196184,1016.3,1014.8,4.00959]
[1610390068748,60.68255376,1015.8,1014.8,4.00959]
[1610390068947,60.68255376,1015.8,1014.9,79.9191]
[1610390069148,45.06457213,1015.8,1014.9,79.9191]
[1610390069450,60.68237843,1015.8,1014.9,79.9191]
[1610390070148,45.06457213,1015.8,1014.9,79.9191]
[1610390070350,45.06457213,1015.8,1015.7,4.00959]
[1610390070549,60.68191198,1015.8,1015.7,4.00959]
[1610390070750,60.68191198,1015.8,1014.9,79.9191]
[1610390070952,45.05991075,1015.9,1014.9,79.9191]
[1610390071550,60.67010536,1016.0,1014.9,79.9191]
[1610390071951,45.04510408,1016.2,1014.9,79.9191]
[1610390072352,60.65564778,1016.3,1016.1,4.00959]
[1610390072652,45.04362729,1016.2,1016.1,4.00959]
[1610390072853,1.7144,1016.2,1016.1,4.00959]
[1610390075654,1.7144,1016.2,1015.6,64.0827]
[1610390075855,1.7144,1016.2,1014.6,2.0574]
[1610390076056,46.7620668,1016.2,1015.0,60.3059]
[1610390076257,4.00959,1015.6,1015.4,4.00959]
[1610390076463,6.29649,1015.6,1015.4,4.00959]
[1610390076656,2.2869,1015.6,1015.4,4.00959]
[1610390077258,2.2869,1015.6,1014.5,76.0292]
[1610390078457,2.2869,1015.6,1015.5,4.00959]
[1610390081559,1.7144,1016.2,1015.5,4.00959]
[1610390081760,60.64635164,1016.3,1015.5,4.00959]
[1610390081959,60.64724566,1016.4,1015.5,4.00959]
[1610390082259,60.64690148,1016.3,1015.5,4.00959]
[1610390082459,62.30470148,1016.3,1015.9,4.00959]
[1610390082960,1.6578,1016.3,1015.9,4.00959]
[1610390083661,46.69490746,1016.3,1015.9,4.00959]
[1610390084462,46.69490746,1016.3,1016.2,4.00959]
[1610390084860,1.6578,1016.3,1016.2,4.00959]
[1610390085261,46.69213023,1016.3,1015.6,67.8391]
[1610390085762,62.29943219,1016.3,1015.6,67.8391]
[1610390086364,46.69213023,1016.3,1016.2,4.00959]
[1610390088767,62.29906576,1016.3,1016.2,4.00959]
[1610390089065,46.69213023,1016.3,1016.2,4.00959]
[1610390089567,1.6578,1016.3,1016.2,4.00959]
[1610390089766,60.63854102,1016.4,1016.2,4.00959]
[1610390090366,60.63854102,1016.4,1015.6,67.8391]
[1610390090569,2.2026,1016.4,1015.6,67.8391]
[1610390092369,2.2026,1016.4,1016.3,4.00959]
[1610390092969,2.2026,1016.4,1014.8,0.28089755]
[1610390093169,2.2026,1016.4,1015.0,65.5177]
[1610390093769,47.23015858,1016.4,1015.0,65.5177]
[1610390094370,4.00959,1016.2,1015.8,4.00959]
[1610390095170,49.04794209,1016.2,1015.0,65.5177]
[1610390095571,64.6573438,1016.2,1015.0,65.5177]
[1610390095770,64.6573438,1016.2,1014.3,0.28251827]
[1610390095970,140.9271438,1016.2,1014.3,0.28251827]
[1610390096170,140.9271438,1016.2,1014.2,0.56503654]
[1610390096171,60.65510067,1016.1,1014.2,0.2827913]
[1610390096369,62.32720067,1016.1,1014.8,4.00959]
[1610390096574,60.66208796,1015.9,1014.8,4.00959]
[1610390096774,60.66650626,1015.8,1014.8,4.00959]
[1610390096972,62.23810626,1015.8,1014.8,3.90959]
[1610390097373,46.62425481,1015.8,1014.8,3.90959]
[1610390097573,1.5716,1015.8,1014.8,3.90959]
[1610390098473,4.00959,1015.5,1015.3,4.00959]
[1610390098672,6.14369,1015.5,1015.3,4.00959]
[1610390099279,2.1341,1015.5,1015.3,4.00959]
[1610390103882,1.5716,1015.8,1015.3,4.00959]
[1610390104083,62.32911236,1016.1,1015.3,4.00959]
[1610390104384,62.32911236,1016.1,1015.7,4.00959]
[1610390104684,45.04467972,1016.0,1015.7,4.00959]
[1610390105084,62.32846711,1016.1,1015.7,4.00959]
[1610390105284,45.04664964,1016.0,1014.9,77.0166]
[1610390106384,64.66719414,1016.0,1015.2,4.00959]
[1610390106585,45.04750053,1015.9,1015.2,4.00959]
[1610390106886,60.66046693,1015.9,1015.2,4.00959]
[1610390108386,60.66046693,1015.9,1015.5,4.00959]
[1610390108788,45.05124608,1015.8,1015.5,4.00959]
[1610390108986,62.69690717,1015.8,1015.5,4.00959]
[1610390109387,47.08334608,1015.8,1015.5,4.00959]
[1610390109787,2.0321,1015.8,1015.5,4.00959]
[1610390114193,66.33419101,1016.1,1015.5,4.00959]
[1610390114393,2.3705,1015.8,1015.7,4.00959]
[1610390115596,2.3705,1015.8,1014.9,77.0166]
[1610390116411,2.3705,1015.8,1015.7,4.00959]
[1610390118521,1.6721,1016.1,1015.7,4.00959]
[1610390118703,62.83864033,1016.4,1015.7,4.00959]
[1610390118898,2.2026,1016.4,1015.7,4.00959]
[1610390119098,45.02327726,1016.5,1015.9,71.579]
[1610390119298,60.62022365,1016.7,1015.9,71.579]
[1610390119499,60.62022365,1016.7,1015.7,4.00959]
[1610390119702,1.9961,1016.7,1016.4,68.4229]
[1610390120501,1.9961,1016.7,1016.6,4.00959]
[1610390120701,44.98885404,1017.5,1016.6,4.00959]
[1610390120901,44.98885404,1017.5,1016.4,68.4229]
[1610390121100,2.1735,1017.5,1016.4,68.4229]
[1610390121501,2.1735,1017.5,1016.1,1.5456]
[1610390121702,2.1735,1017.5,1017.0,70.5914]
[1610390122304,60.55226707,1018.1,1017.0,70.5914]
[1610390122503,60.54845696,1018.2,1017.0,70.5914]
[1610390122704,44.96498808,1018.2,1017.0,70.5914]
[1610390122903,44.96498808,1018.2,1018.1,4.00959]
[1610390123104,60.53528737,1018.4,1018.1,4.00959]
[1610390123505,60.52970523,1018.5,1018.1,4.00959]
[1610390123705,60.52970523,1018.5,1018.4,70.0304]
[1610390124109,60.5154071,1018.8,1018.4,70.0304]
[1610390124911,60.5154071,1018.8,1018.7,4.00959]
[1610390125311,60.49956651,1019.1,1018.7,72.84279]
[1610390125911,44.92868065,1019.1,1018.7,72.84279]
[1610390126312,60.48527844,1019.2,1018.7,72.84279]
[1610390126512,60.48527844,1019.2,1019.0,77.2387]
[1610390126711,60.48198787,1019.3,1019.0,77.2387]
[1610390126911,60.48198787,1019.3,1019.2,4.00959]
[1610390127314,60.48198787,1019.3,1019.2,14.00199]
[1610390127712,44.91562626,1019.3,1019.2,14.00199]
[1610390128312,39.77552626,1019.3,1019.2,14.00199]
[1610390128511,15.56492231,1019.4,1019.2,14.00199]
[1610390128512,38.31992078,1019.4,1019.2,4.00959]
[1610390128911,20.3507262,1019.9,1019.2,4.00959]
[1610390128912,38.30981394,1019.8,1019.5,72.4998]
[1610390129112,53.861414,1020.0,1019.5,72.4998]
[1610390129511,38.3041083,1020.0,1019.5,72.4998]
[1610390129913,53.85038999,1020.2,1019.5,72.4998]
[1610390130312,53.85038999,1020.2,1019.5,1.7936]
[1610390130512,53.84265964,1020.3,1019.9,81.5376]
[1610390130913,53.84078571,1020.5,1020.2,4.00959]
[1610390131714,17.94500593,1020.4,1019.2,68.4068]
[1610390131913,20.03710593,1020.4,1019.2,68.4068]
[1610390132115,38.29646347,1020.0,1019.2,68.4068]
[1610390132315,40.18276347,1020.0,1018.7,2.1021]
[1610390132517,55.73835566,1020.0,1018.3,56.2415]
[1610390132919,38.30601596,1019.7,1019.3,4.00959]
[1610390133118,39.97721596,1019.7,1019.3,4.00959]
[1610390133319,55.53587747,1019.7,1019.3,4.00959]
[1610390133621,1.6712,1019.7,1019.3,4.00959]
[1610390134923,1.6712,1019.7,1019.6,4.00959]
[1610390138231,1.8863,1020.0,1019.6,4.00959]
[1610390138433,58.03045932,1020.3,1019.0,69.1351]
[1610390138832,42.47689071,1020.2,1019.0,69.1351]
[1610390139032,42.47689071,1020.2,1019.8,4.00959]
[1610390139241,58.02714152,1020.2,1019.8,4.00959]
[1610390139434,58.03601537,1020.0,1019.8,4.00959]
[1610390139635,59.70261537,1020.0,1019.8,4.00959]
[1610390140035,59.70261537,1020.0,1019.0,69.1351]
[1610390140244,58.03739346,1019.9,1019.0,69.1351]
[1610390140438,58.03739346,1019.9,1018.3,63.9398]
[1610390140837,42.4935973,1019.7,1018.3,63.9398]
[1610390141037,4.00959,1019.1,1018.3,63.9398]
[1610390141237,5.62119,1019.1,1017.6,0.26876705]
[1610390141440,5.62119,1019.1,1017.6,79.7456]
[1610390141839,5.62119,1019.1,1017.3,0.26926294]
[1610390142040,1.6116,1019.1,1017.3,63.28386294]
[1610390142339,1.6116,1019.1,1017.3,63.0146]
[1610390142639,1.6116,1019.1,1017.3,63.2849569]
[1610390142943,1.6116,1019.1,1018.6,4.00959]
[1610390144940,4.00959,1019.0,1018.6,4.00959]
[1610390145343,59.69933228,1019.1,1018.6,4.00959]
[1610390145545,42.52484377,1019.0,1018.6,4.00959]